bitfinex/quotes_BTCUSD_20250114
["timestamp","ask_amount","ask_price","bid_price","bid_amount"]
[1736849205927,0.0066,97078.0,97067.0,0.206043]
[1736849206272,0.001,97077.0,97065.0,0.2069004]
[1736849206470,0.0066,97078.0,97065.0,0.2069004]
[1736849206670,0.0066,97078.0,97067.0,0.206043]
[1736849206870,0.0076,97078.0,97067.0,0.206043]
[1736849207029,0.0066,97078.0,97067.0,0.206043]
[1736849207234,0.206022,97077.0,97065.0,0.0008554]
[1736849207436,0.001,97077.0,97066.0,0.206045]
[1736849207638,0.0066,97078.0,97066.0,0.206045]
[1736849207834,0.0066,97078.0,97067.0,0.206043]
[1736849208157,0.0066,97078.0,97067.0,1.706043]
[1736849208768,0.0066,97078.0,97068.0,0.206041]
[1736849208971,0.0066,97078.0,97069.0,0.31026592]
[1736849209173,0.001,97078.0,97069.0,0.10422692]
[1736849209525,0.001,97078.0,97070.0,0.206036]
[1736849209878,0.001,97078.0,97071.0,0.206034]
[1736849210088,0.00179634,97080.0,97070.0,0.206036]
[1736849210934,0.001,97078.0,97070.0,0.206036]
[1736849211275,0.001,97078.0,97067.0,0.206041]
[1736849211478,0.207021,97078.0,97058.0,0.20606]
[1736849211652,0.207021,97078.0,97066.0,0.206045]
[1736849211856,0.207021,97078.0,97059.0,0.00943307]
[1736849212058,0.413042,97078.0,97059.0,0.00943307]
[1736849212260,0.206021,97078.0,97066.0,0.206045]
[1736849212456,0.206021,97078.0,97059.0,0.00943307]
[1736849212621,0.206024,97076.0,97059.0,0.00943307]
[1736849212825,0.206037,97070.0,97059.0,0.00943307]
[1736849213063,0.206037,97070.0,97057.0,0.206062]
[1736849213666,0.206045,97066.0,97055.0,0.00943307]
[1736849214051,0.356045,97066.0,97055.0,0.00943307]
[1736849214248,0.356045,97066.0,97053.0,0.0008541]
[1736849219096,0.379045,97066.0,97053.0,0.0008541]
[1736849220888,0.20603,97073.0,97054.0,0.20607]
[1736849221072,0.00179634,97080.0,97061.0,0.0751]
[1736849221266,0.00179634,97080.0,97074.0,0.206027]
[1736849221515,0.00179634,97080.0,97061.0,0.0751]
[1736849221516,0.00179634,97080.0,97075.0,1.5]
[1736849221874,0.00179634,97080.0,97068.0,0.20604]
[1736849222306,0.001,97073.0,97069.0,1.5]
[1736849222515,0.004,97073.0,97069.0,1.5]
[1736849222923,0.206026,97075.0,97069.0,1.5]
[1736849223142,0.206034,97071.0,97069.0,1.5]
[1736849223875,0.206026,97075.0,97069.0,1.503]
[1736849224161,0.206035,97071.0,97069.0,0.002]
[1736849224471,0.023,97070.0,97069.0,0.002]
[1736849224708,0.36861265,97070.0,97069.0,0.002]
[1736849225349,0.173,97068.0,97064.0,0.01063093]
[1736849225553,0.173,97066.0,97064.0,0.01063093]
[1736849225757,0.27722692,97066.0,97064.0,0.01063093]
[1736849226405,0.007,97070.0,97064.0,0.01063093]
[1736849226757,0.007,97070.0,97066.0,0.206043]
[1736849226961,0.003,97070.0,97066.0,0.412087]
[1736849227121,0.007,97068.0,97067.0,1.5]
[1736849227591,0.007,97068.0,97066.0,0.412087]
[1736849228103,0.007,97068.0,97067.0,1.5]
[1736849228569,0.00839634,97077.0,97067.0,1.5]
[1736849228763,0.023,97076.0,97067.0,1.5]
[1736849229268,0.229024,97076.0,97067.0,1.5]
[1736849229480,0.229024,97076.0,97067.0,1.504]
[1736849229703,0.206032,97073.0,97067.0,0.001]
[1736849229927,0.023,97074.0,97065.0,0.0008554]
[1736849230102,0.206037,97070.0,97065.0,0.0008554]
[1736849230235,0.10422692,97069.0,97065.0,0.0008554]
[1736849230436,0.435082,97068.0,97065.0,0.0008554]
[1736849230659,0.53930892,97068.0,97065.0,0.0008554]
[1736849231442,0.379045,97066.0,97065.0,0.0008554]
[1736849231666,0.48327192,97066.0,97065.0,0.0008554]
[1736849232732,0.48827192,97066.0,97065.0,0.0008554]
[1736849232965,0.59249884,97066.0,97065.0,0.0008554]
[1736849233171,0.59449884,97066.0,97065.0,0.0008554]
[1736849234144,0.49027192,97066.0,97065.0,0.0008554]
[1736849235326,0.63877192,97066.0,97065.0,0.0008554]
[1736849235524,0.81717192,97066.0,97065.0,0.0003253]
[1736849236155,0.62377192,97066.0,97065.0,0.0003253]
[1736849236493,0.82177192,97066.0,97065.0,0.0003253]
[1736849236705,0.71325384,97066.0,97053.0,0.0008541]
[1736849236906,0.81019692,97054.0,97053.0,0.0008541]
[1736849237711,0.634483,97048.0,97047.0,0.0008541]
[1736849237903,0.1,97041.0,96997.0,0.20619]
[1736849238105,0.76832492,97041.0,97040.0,0.0010035]
[1736849238419,0.87255184,97041.0,97040.0,0.0010035]
[1736849238983,0.56172492,97041.0,97040.0,0.0010035]
[1736849239336,0.56832492,97041.0,97040.0,0.0010035]
[1736849239493,0.56672492,97041.0,97040.0,0.0010035]
[1736849239699,0.43232492,97041.0,97040.0,0.0010035]
[1736849239930,0.55432492,97041.0,97040.0,0.0010035]
[1736849240101,0.47592492,97041.0,97040.0,0.0010035]
[1736849240424,0.49492492,97041.0,97040.0,0.0010035]
[1736849240627,0.50392492,97041.0,97040.0,0.0010035]
[1736849240842,0.0206,97041.0,97040.0,0.0010035]
[1736849241203,0.0206,97041.0,97028.0,1.49991163]
[1736849241407,0.009149,97041.0,97030.0,0.206121]
[1736849241619,0.0066,97040.0,97030.0,0.206121]
[1736849242871,0.0066,97040.0,97028.0,1.49991163]
[1736849243073,0.0076,97040.0,97028.0,1.49991163]
[1736849243276,0.0076,97040.0,97028.0,1.49981979]
[1736849243277,0.0066,97040.0,97028.0,1.49981979]
[1736849243473,0.15,97039.0,97028.0,1.49981979]
[1736849243687,0.229104,97038.0,97030.0,0.001]
[1736849243880,0.206114,97034.0,97030.0,0.001]
[1736849244096,0.206106,97037.0,97028.0,1.49981979]
[1736849244408,0.206111,97035.0,97028.0,1.49981979]
[1736849244824,0.206111,97035.0,97018.0,0.206146]
[1736849245053,0.206111,97035.0,97028.0,0.001]
[1736849245204,0.206111,97035.0,97028.0,0.0018542]
[1736849245411,0.206111,97035.0,97028.0,0.0008542]
[1736849246008,0.206113,97034.0,97028.0,0.0018542]
[1736849246209,0.0066,97036.0,97028.0,0.0008542]
[1736849246414,0.003,97035.0,97028.0,0.0008542]
[1736849246611,0.209111,97035.0,97028.0,0.0008542]
[1736849246932,0.20612,97031.0,97028.0,0.0008542]
[1736849247518,0.206123,97029.0,97028.0,0.0008542]
[1736849247737,0.229123,97029.0,97028.0,0.0008542]
[1736849247966,0.15,97034.0,97028.0,0.0008542]
[1736849248787,0.206115,97033.0,97028.0,0.0008542]
[1736849248987,0.15,97034.0,97028.0,0.0008542]
[1736849248988,0.001,97031.0,97028.0,0.0008542]
[1736849249196,0.15,97039.0,97028.0,0.0008542]
[1736849249401,0.0066,97037.0,97028.0,0.2069802]
[1736849249645,0.003,97034.0,97028.0,0.2069802]
[1736849249846,0.003,97034.0,97032.0,0.206116]
[1736849249847,0.0066,97033.0,97032.0,0.206116]
[1736849250226,0.023,97032.0,97028.0,0.2069802]
[1736849250634,0.001,97034.0,97028.0,0.2069802]
[1736849250923,0.023,97037.0,97028.0,0.2069802]
[1736849251115,0.023,97037.0,97028.0,0.0008542]
[1736849251737,0.026,97037.0,97028.0,0.0008542]
[1736849251956,0.023,97037.0,97028.0,0.0008542]
[1736849252417,0.025,97037.0,97028.0,0.0008542]
[1736849252627,0.023,97037.0,97028.0,0.0008542]
[1736849252834,0.026,97037.0,97028.0,0.0008542]
[1736849253364,0.023,97035.0,97027.0,0.1829812]
[1736849254745,0.001,97037.0,97028.0,1.5]
[1736849254920,0.0066,97039.0,97034.0,0.206113]
[1736849255138,0.0066,97039.0,97029.0,0.0804]
[1736849255139,0.002,97035.0,97030.0,0.206121]
[1736849255364,0.002,97035.0,97034.0,0.206113]
[1736849255584,0.002,97035.0,97034.0,0.31033992]
[1736849256042,0.0066,97052.0,97034.0,0.31033992]
[1736849256043,0.001,97039.0,97035.0,0.206111]
[1736849256254,0.001,97039.0,97034.0,0.001]
[1736849256462,0.001,97039.0,97030.0,0.206121]
[1736849256463,0.001,97039.0,97033.0,0.206113]
[1736849256878,0.001,97039.0,97031.0,0.206119]
[1736849257127,0.023,97036.0,97029.0,0.0804]
[1736849257336,0.023,97036.0,97029.0,0.18462692]
[1736849257542,0.023,97036.0,97030.0,0.206121]
[1736849257756,0.023,97036.0,97034.0,0.209111]
[1736849257957,0.001,97035.0,97034.0,0.210111]
[1736849258160,0.001,97035.0,97034.0,0.207111]
[1736849258363,0.023,97036.0,97029.0,0.0814]
[1736849258569,0.023,97036.0,97029.0,0.002]
[1736849258943,0.03354777,97036.0,97028.0,0.0008543]
[1736849259175,0.03354777,97036.0,97034.0,0.003]
[1736849259321,0.01054777,97036.0,97034.0,0.003]
[1736849259544,0.00179403,97037.0,97034.0,0.002]
[1736849259720,0.00179403,97037.0,97035.0,0.206111]
[1736849259915,0.00179403,97037.0,97034.0,0.002]
[1736849260120,0.023,97036.0,97034.0,0.002]
[1736849260399,0.023,97036.0,97031.0,0.0804]
[1736849260571,0.023,97036.0,97030.0,0.20612]
[1736849260850,0.024,97036.0,97030.0,0.20612]
[1736849260990,0.024,97036.0,97032.0,0.206117]
[1736849261197,0.023,97036.0,97032.0,0.412234]
[1736849261400,0.026,97036.0,97032.0,0.412234]
[1736849261806,0.023,97036.0,97033.0,1.5]
[1736849262887,0.023,97036.0,97034.0,0.206113]
[1736849263290,0.023,97036.0,97032.0,0.207117]
[1736849264076,0.023,97036.0,97032.0,0.206117]
[1736849264426,0.023,97036.0,97033.0,0.002]
[1736849264627,0.023,97036.0,97033.0,0.001]
[1736849264835,0.023,97036.0,97032.0,0.206117]
[1736849265018,0.023,97036.0,97032.0,0.207117]
[1736849265215,0.023,97036.0,97032.0,0.002]
[1736849265442,0.023,97036.0,97032.0,0.001]
[1736849265611,0.023,97036.0,97033.0,0.001]
[1736849265817,0.023,97036.0,97032.0,0.001]
[1736849266218,0.023,97036.0,97032.0,0.002]
[1736849266625,0.023,97036.0,97032.0,1.502]
[1736849267262,0.023,97036.0,97032.0,1.501]
[1736849267523,0.023,97036.0,97033.0,0.001]
[1736849267721,0.023,97036.0,97033.0,0.002]
[1736849267923,0.023,97036.0,97033.0,0.413228]
[1736849268294,0.023,97036.0,97033.0,0.206113]
[1736849269002,0.023,97036.0,97032.0,1.5]
[1736849269154,0.023,97036.0,97033.0,0.002]
[1736849270243,0.023,97036.0,97033.0,0.001]
[1736849270736,0.00179403,97037.0,97032.0,0.001]
[1736849270737,0.023,97034.0,97032.0,0.001]
[1736849270938,0.003,97036.0,97032.0,0.001]
[1736849271147,0.003,97036.0,97028.0,0.0008543]
[1736849271148,0.023,97035.0,97028.0,0.0008543]
[1736849271563,0.023,97033.0,97028.0,0.0008543]
[1736849272665,0.023,97031.0,97028.0,0.0008543]
[1736849273098,0.229121,97031.0,97028.0,0.0008543]
[1736849273336,0.023,97029.0,97028.0,0.0008543]
[1736849274619,0.379123,97029.0,97028.0,0.0008543]
[1736849275601,0.56504992,97029.0,97028.0,0.0008543]
[1736849276207,0.57004992,97029.0,97028.0,0.0008543]
[1736849276592,0.465823,97029.0,97028.0,0.0008543]
[1736849276793,0.472423,97029.0,97028.0,0.0008543]
[1736849277202,0.390723,97029.0,97028.0,0.0007543]
[1736849277413,0.241723,97029.0,97028.0,0.0007543]
[1736849277645,0.230123,97029.0,97028.0,0.0007543]
[1736849277844,0.236723,97029.0,97028.0,0.0007543]
[1736849278045,0.245723,97029.0,97028.0,0.0007543]
[1736849278334,0.235723,97029.0,97028.0,0.0007543]
[1736849278508,0.48994992,97029.0,97028.0,0.0007543]
[1736849278741,0.50194992,97029.0,97028.0,0.0007543]
[1736849278907,0.62084992,97029.0,97028.0,0.0007543]
[1736849279304,0.62284992,97029.0,97028.0,0.0007543]
[1736849279541,0.61784992,97029.0,97028.0,0.0007543]
[1736849279716,0.61124992,97029.0,97028.0,0.0007543]
[1736849279920,0.72125143,97029.0,97028.0,0.0007543]
[1736849280646,0.72225143,97029.0,97028.0,0.0007543]
[1736849281052,0.95967532,97029.0,97028.0,0.0007543]
[1736849281437,0.96267532,97029.0,97028.0,0.0007543]
[1736849281659,0.98318145,97029.0,97028.0,0.0007543]
[1736849282506,0.487468,97008.0,96994.0,0.0008537]
[1736849282744,0.61469492,97008.0,96994.0,0.0008537]
[1736849283949,0.61769492,97008.0,96994.0,0.0008537]
[1736849284135,0.62818672,97008.0,96994.0,0.0008537]
[1736849284336,0.63718672,97008.0,96994.0,0.0008537]
[1736849284476,0.72941364,97008.0,96994.0,0.0008537]
[1736849284684,0.73341364,97008.0,96994.0,0.0008537]
[1736849284892,0.74241364,97008.0,96994.0,0.0008537]
[1736849285118,0.84241364,97008.0,96994.0,0.0008537]
[1736849285355,0.229249,96970.0,96967.0,0.0008542]
[1736849285559,0.235849,96970.0,96969.0,0.00100298]
[1736849285991,0.235849,96970.0,96969.0,0.00090298]
[1736849286158,0.0296,96970.0,96969.0,0.00090298]
[1736849287068,0.0296,96970.0,96969.0,0.00290298]
[1736849287517,0.0306,96970.0,96969.0,0.00290298]
[1736849287880,0.0306,96970.0,96969.0,0.00090298]
[1736849288237,0.0296,96970.0,96969.0,0.00190298]
[1736849288615,0.0306,96970.0,96969.0,0.00190298]
[1736849289792,0.001,96970.0,96969.0,0.00190298]
[1736849290001,0.001,96970.0,96969.0,0.00193412]
[1736849290172,0.001,96970.0,96969.0,1.50190298]
[1736849290779,0.0823,97001.0,96976.0,0.0776]
[1736849291008,0.12253016,97000.0,96980.0,0.206226]
[1736849291211,0.25422692,96999.0,96976.0,0.0776]
[1736849291432,0.023,96982.0,96977.0,1.5]
[1736849291639,0.0066,96981.0,96977.0,1.5]
[1736849291842,0.0296,96980.0,96977.0,1.5]
[1736849291997,0.023,96978.0,96977.0,1.5]
[1736849292196,0.023,96978.0,96969.0,0.00190298]
[1736849292418,0.023,96971.0,96969.0,0.00190298]
[1736849293677,0.023,96971.0,96969.0,0.00090298]
[1736849293977,0.229249,96970.0,96969.0,0.00090298]
[1736849294383,0.023,96970.0,96969.0,0.00090298]
[1736849294697,0.023,96970.0,96969.0,0.00190298]
[1736849296177,0.023,96970.0,96969.0,0.00090298]
[1736849296554,0.023,96970.0,96969.0,0.00190298]
[1736849296967,0.023,96970.0,96969.0,0.00090298]
[1736849297162,0.024,96970.0,96969.0,0.00090298]
[1736849297906,0.028,96970.0,96969.0,0.00090298]
[1736849299488,0.173,96969.0,96930.0,0.07838993]
[1736849299664,0.173,96967.0,96956.0,0.206277]
[1736849300028,0.173,96967.0,96953.0,0.206284]
[1736849300249,0.173,96965.0,96954.0,0.10422692]
[1736849300456,0.173,96965.0,96954.0,1.60422692]
[1736849300660,0.023,96963.0,96954.0,1.60422692]
[1736849301311,0.0066,96964.0,96954.0,1.60422692]
[1736849301723,0.023,96963.0,96954.0,1.60422692]
[1736849303430,0.024,96963.0,96954.0,0.10522692]
[1736849303854,0.024,96963.0,96955.0,1.5]
[1736849304063,0.023,96963.0,96956.0,0.206279]
[1736849304469,0.024,96963.0,96954.0,0.10608182]
[1736849304707,0.023,96963.0,96955.0,1.5]
[1736849304908,0.023,96963.0,96954.0,0.10608182]
[1736849305086,0.024,96963.0,96954.0,0.10608182]
[1736849305405,0.024,96963.0,96954.0,0.10508182]
[1736849305587,0.024,96963.0,96954.0,0.0008549]
[1736849305779,0.024,96963.0,96955.0,0.001]
[1736849306205,0.023,96961.0,96954.0,0.0008549]
[1736849306607,0.023,96961.0,96954.0,0.0018549]
[1736849306759,0.023,96960.0,96954.0,0.0018549]
[1736849307104,0.023,96958.0,96954.0,0.0018549]
[1736849307356,0.356281,96955.0,96954.0,0.0008549]
[1736849307721,0.379281,96955.0,96954.0,0.0008549]
[1736849308468,0.15,96955.0,96954.0,0.0008549]
[1736849308667,0.0066,96955.0,96954.0,0.0008549]
[1736849309899,0.3647,96955.0,96954.0,0.0008549]
[1736849310136,0.3657,96955.0,96954.0,0.0008549]
[1736849310290,0.1117,96955.0,96954.0,0.0008549]
[1736849310496,0.1147,96955.0,96954.0,0.0008549]
[1736849311070,0.1117,96955.0,96954.0,0.0008549]
[1736849311239,0.1157,96955.0,96954.0,0.0008549]
[1736849311441,0.028,96955.0,96954.0,0.0008549]
[1736849311644,0.005,96955.0,96954.0,0.0008549]
[1736849311906,0.0116,96955.0,96954.0,0.0008549]
[1736849312253,0.0106,96955.0,96954.0,0.0008549]
[1736849312496,0.0066,96955.0,96954.0,0.0008549]
[1736849312682,0.0086,96955.0,96954.0,0.0008549]
[1736849312883,0.0086,96955.0,96954.0,0.01033024]
[1736849313084,0.0066,96955.0,96954.0,0.01033024]
[1736849313454,0.0066,96955.0,96954.0,0.01133024]
[1736849313897,0.0066,96955.0,96954.0,0.21661324]
[1736849314307,0.206255,96968.0,96954.0,0.01133024]
[1736849314540,0.0296,96967.0,96954.0,0.01133024]
[1736849314911,0.023,96966.0,96955.0,0.00947534]
[1736849315113,0.023,96966.0,96956.0,1.5]
[1736849315688,0.0042353,96970.0,96966.0,0.206256]
[1736849315892,0.0042353,96970.0,96967.0,0.10422692]
[1736849316291,0.0042353,96970.0,96967.0,0.00947534]
[1736849316995,0.023,96969.0,96967.0,0.01127534]
[1736849317349,0.023,96969.0,96962.0,0.206264]
[1736849317570,0.0042353,96970.0,96966.0,0.206257]
[1736849317984,0.0042353,96970.0,96966.0,0.20728816]
[1736849318186,0.0042353,96970.0,96963.0,0.10422692]
[1736849318806,0.0042353,96970.0,96967.0,0.002]
[1736849319206,0.0042353,96970.0,96963.0,0.10422692]
[1736849319407,0.0052353,96970.0,96963.0,0.10422692]
[1736849319562,0.0042353,96970.0,96964.0,0.206262]
[1736849319766,0.0042353,96970.0,96965.0,0.10422692]
[1736849320429,0.0042353,96970.0,96967.0,0.002]
[1736849320633,0.0052353,96970.0,96967.0,0.002]
[1736849321796,0.379253,96968.0,96967.0,0.002]
[1736849322023,0.462453,96968.0,96967.0,0.002]
[1736849322182,0.462453,96968.0,96954.0,0.0008549]
[1736849322183,0.15,96965.0,96954.0,0.0008549]
[1736849322550,0.023,96964.0,96954.0,0.0008549]
[1736849323136,0.173,96962.0,96954.0,0.0008549]
[1736849323337,0.173,96962.0,96954.0,0.0018549]
[1736849323954,0.15,96960.0,96954.0,0.0008549]
[1736849324166,0.15,96960.0,96954.0,0.0018549]
[1736849324897,0.206277,96957.0,96954.0,0.0018549]
[1736849325230,0.15,96960.0,96954.0,0.0018549]
[1736849325427,0.023,96959.0,96954.0,0.0018549]
[1736849326017,0.023,96959.0,96954.0,0.0008549]
[1736849326447,0.173,96963.0,96954.0,0.0018549]
[1736849326645,0.173,96957.0,96954.0,0.0018549]
[1736849326845,0.273,96955.0,96954.0,0.0018549]
[1736849327051,0.273,96955.0,96954.0,0.0008549]
[1736849327272,0.173,96955.0,96954.0,0.0018549]
[1736849327886,0.173,96955.0,96954.0,0.0008549]
[1736849329673,0.175,96955.0,96954.0,0.0008549]
[1736849330719,0.0086,96955.0,96954.0,0.0008549]
[1736849331076,0.0852,96955.0,96954.0,0.0008549]
[1736849331349,0.0918,96955.0,96954.0,0.0008549]
[1736849331530,0.1148,96955.0,96954.0,0.0008549]
[1736849331978,0.1128,96955.0,96954.0,0.0008549]
[1736849332867,0.1148,96955.0,96954.0,0.0008549]
[1736849334314,0.0852,96955.0,96954.0,0.0008549]
[1736849334721,0.0918,96955.0,96954.0,0.0008549]
[1736849335322,0.0852,96955.0,96954.0,0.0008549]
[1736849335499,0.0918,96955.0,96954.0,0.0008549]
[1736849335718,0.0086,96955.0,96954.0,0.0008549]
[1736849336196,0.002,96955.0,96954.0,0.31136482]
[1736849336900,0.002,96955.0,96954.0,1.5008549]
[1736849337522,0.002,96955.0,96954.0,1.5038549]
[1736849338117,0.0066,96956.0,96954.0,1.5038549]
[1736849338535,0.002,96955.0,96954.0,1.5038549]
[1736849338740,0.0066,96956.0,96954.0,1.5038549]
[1736849338969,0.0066,96956.0,96954.0,1.5008549]
[1736849339190,0.0066,96956.0,96954.0,1.5028549]
[1736849339799,0.0066,96955.0,96954.0,1.5008549]
[1736849340404,0.4004,96955.0,96954.0,0.0028549]
[1736849341191,0.4004,96955.0,96954.0,0.0008549]
[1736849342227,0.4004,96955.0,96954.0,0.0028549]
[1736849342377,0.4034,96955.0,96954.0,0.0028549]
[1736849342810,0.4034,96955.0,96954.0,0.0008549]
[1736849343416,0.5034,96955.0,96954.0,0.0008549]
[1736849343938,0.4044,96955.0,96954.0,0.0008549]
[1736849344524,0.4014,96955.0,96954.0,0.0008549]
[1736849344957,0.4044,96955.0,96954.0,0.0008549]
[1736849345134,0.4014,96955.0,96954.0,0.0008549]
[1736849345334,0.5004,96955.0,96954.0,0.0008549]
[1736849345541,0.53925502,96955.0,96954.0,0.0008549]
[1736849346438,0.53725502,96955.0,96954.0,0.0008549]
[1736849347002,0.50535015,96955.0,96954.0,0.0008549]
[1736849347181,0.50735015,96955.0,96954.0,0.0008549]
[1736849350268,0.61157707,96955.0,96954.0,0.0008549]
[1736849353825,0.61362692,96955.0,96954.0,0.0008549]
[1736849354068,0.61226029,96955.0,96954.0,0.0008549]
[1736849355274,0.60826029,96955.0,96954.0,0.0008549]
[1736849355490,0.60126029,96955.0,96954.0,0.0008549]
[1736849355669,0.61426029,96955.0,96954.0,0.0008549]
[1736849356087,0.60126029,96955.0,96954.0,0.0008549]
[1736849356253,0.61026029,96955.0,96954.0,0.0008549]
[1736849356945,0.61326029,96955.0,96954.0,0.0008549]
[1736849360392,0.012,96955.0,96954.0,0.0008549]
[1736849361873,0.0066,96957.0,96954.0,0.0008549]
[1736849362191,0.003,96955.0,96954.0,0.0008549]
[1736849362519,0.0066,96956.0,96954.0,0.0008549]
[1736849362916,0.0066,96956.0,96954.0,0.0038549]
[1736849363112,0.0017955,96962.0,96954.0,0.0038549]
[1736849363378,0.1517955,96962.0,96946.0,0.1081549]
[1736849363574,0.0066,96961.0,96954.0,0.001]
[1736849363984,0.15,96959.0,96954.0,0.001]
[1736849364910,0.15,96959.0,96947.0,0.10422692]
[1736849365779,0.15,96957.0,96947.0,0.10422692]
[1736849366293,0.0066,96956.0,96947.0,0.10522692]
[1736849366777,0.0066,96956.0,96947.0,0.10422692]
[1736849367025,0.0066,96956.0,96947.0,0.10522692]
[1736849367263,0.0066,96956.0,96947.0,0.001]
[1736849367470,0.206285,96953.0,96947.0,0.001]
[1736849367675,0.0066,96956.0,96947.0,0.001]
[1736849367676,0.15,96952.0,96947.0,0.001]
[1736849368561,0.15,96954.0,96947.0,0.001]
[1736849368941,0.15,96954.0,96940.0,0.00049351]
[1736849369090,0.15,96954.0,96941.0,0.31053792]
[1736849369525,0.0066,96956.0,96948.0,0.206296]
[1736849369744,0.0066,96956.0,96947.0,0.001]
[1736849369745,0.1517955,96962.0,96950.0,0.206291]
[1736849369945,0.0066,96955.0,96951.0,0.10422692]
[1736849370147,0.001,96954.0,96951.0,0.10422692]
[1736849370355,0.0066,96955.0,96952.0,1.706287]
[1736849370636,0.0066,96955.0,96953.0,0.10422692]
[1736849371231,0.0066,96955.0,96953.0,1.60422692]
[1736849371596,0.0017955,96962.0,96953.0,1.60422692]
[1736849371831,0.0066,96961.0,96959.0,0.206272]
[1736849372036,0.0066,96961.0,96960.0,0.10422692]
[1736849373219,0.0017955,96962.0,96960.0,0.10422692]
[1736849373787,0.0017955,96962.0,96961.0,0.206268]
[1736849373995,0.0017955,96962.0,96961.0,0.38842615]
[1736849374206,0.0017955,96962.0,96961.0,0.38739492]
[1736849375905,0.0017955,96962.0,96961.0,0.43299492]
[1736849376129,0.0017955,96962.0,96961.0,0.43599492]
[1736849376504,0.0017953,96967.0,96966.0,0.241957]
[1736849376709,0.0017953,96967.0,96966.0,1.84618392]
[1736849378325,0.0017953,96967.0,96966.0,1.88984147]
[1736849378749,0.0027953,96967.0,96966.0,1.89184147]
[1736849379076,0.0027953,96967.0,96966.0,0.15388447]
[1736849379560,0.0017953,96967.0,96966.0,0.12890279]
[1736849379874,0.0017953,96967.0,96966.0,0.11022692]
[1736849380017,0.0027953,96967.0,96966.0,0.11022692]
[1736849380236,0.0027953,96967.0,96966.0,0.10622692]
[1736849380451,0.0027953,96967.0,96966.0,0.10922692]
[1736849381473,0.0027953,96967.0,96966.0,0.11025806]
[1736849381680,0.0017953,96967.0,96966.0,0.10722692]
[1736849382201,0.0027953,96967.0,96966.0,0.10822692]
[1736849382430,0.0027953,96967.0,96966.0,0.004]
[1736849382639,0.0257953,96967.0,96966.0,0.004]
[1736849382858,0.3587953,96967.0,96966.0,0.004]
[1736849383063,0.65762072,96967.0,96966.0,0.004]
[1736849383485,0.65762072,96967.0,96966.0,0.001]
[1736849383699,0.173,96966.0,96940.0,0.00049351]
[1736849383949,0.709481,96955.0,96940.0,0.00049351]
[1736849384125,0.82030792,96955.0,96940.0,0.00049351]
[1736849385743,0.82930792,96955.0,96940.0,0.00049351]
[1736849385944,0.1,96941.0,96940.0,0.00049351]
[1736849386142,0.479311,96941.0,96940.0,0.00049351]
[1736849387655,0.379311,96941.0,96940.0,0.00049351]
[1736849389048,0.382311,96941.0,96940.0,0.00049351]
[1736849389564,0.39253264,96941.0,96940.0,0.00049351]
[1736849389763,0.38953264,96941.0,96940.0,0.00049351]
[1736849389971,0.39053264,96941.0,96940.0,0.00049351]
[1736849390870,0.49053264,96941.0,96940.0,0.00049351]
[1736849391173,0.49453264,96941.0,96940.0,0.00049351]
[1736849391403,0.49353264,96941.0,96940.0,0.00049351]
[1736849391790,0.49553264,96941.0,96940.0,0.00049351]
[1736849392251,0.49353264,96941.0,96940.0,0.00049351]
[1736849392467,0.49053264,96941.0,96940.0,0.00049351]
[1736849392842,0.49653264,96941.0,96940.0,0.00049351]
[1736849393046,0.16622164,96941.0,96940.0,0.00049351]
[1736849393259,0.17482164,96941.0,96940.0,0.00049351]
[1736849393461,0.1646,96941.0,96940.0,0.00049351]
[1736849393676,0.2646,96941.0,96940.0,1.50049351]
[1736849394085,0.158,96941.0,96940.0,0.00049351]
[1736849394289,0.1646,96941.0,96940.0,0.00049351]
[1736849394607,0.1566,96941.0,96940.0,0.00049351]
[1736849394903,0.1586,96941.0,96940.0,0.00049351]
[1736849397573,0.5799757,96941.0,96940.0,0.00049351]
[1736849397777,0.12253016,96910.0,96900.0,4.5e-05]
[1736849397980,0.212979,96909.0,96900.0,0.10427192]
[1736849398184,0.206394,96902.0,96900.0,0.10439413]
[1736849399215,0.15,96901.0,96900.0,0.00016721]
[1736849399420,0.15,96901.0,96900.0,0.00216721]
[1736849400434,0.14938313,96901.0,96900.0,0.00216721]
[1736849401035,0.14938313,96901.0,96900.0,0.00016721]
[1736849401260,0.14938313,96901.0,96900.0,0.00216721]
[1736849401261,0.15598313,96901.0,96900.0,0.00216721]
[1736849401784,0.16198313,96901.0,96900.0,0.00016721]
[1736849402104,0.15698313,96901.0,96900.0,0.00016721]
[1736849402501,0.16298313,96901.0,96900.0,0.00016721]
[1736849402707,0.0126,96901.0,96900.0,0.00016721]
[1736849402906,0.0066,96901.0,96900.0,0.00016721]
[1736849403047,0.0126,96901.0,96900.0,0.00016721]
[1736849403255,0.006,96901.0,96900.0,0.10422692]
[1736849403453,0.206366,96915.0,96900.0,0.10422692]
[1736849403454,0.01057522,96913.0,96900.0,0.10525878]
[1736849403816,0.0066,96912.0,96900.0,0.10422692]
[1736849404035,0.206383,96907.0,96900.0,0.10422692]
[1736849404236,0.206374,96911.0,96901.0,1.5]
[1736849404804,0.32890416,96911.0,96901.0,1.5]
[1736849405156,0.1566,96910.0,96901.0,1.5]
[1736849405361,0.15,96910.0,96906.0,0.206385]
[1736849405561,0.31657702,96918.0,96906.0,0.206385]
[1736849405562,0.0066,96909.0,96907.0,0.10422692]
[1736849405787,0.21657702,96918.0,96909.0,0.206379]
[1736849405788,0.01021702,96918.0,96909.0,0.206379]
[1736849405969,0.002,96911.0,96910.0,1.60525865]
[1736849406164,0.356345,96925.0,96910.0,1.60422692]
[1736849406364,0.206345,96925.0,96910.0,1.81060392]
[1736849406589,0.0481,96938.0,96912.0,0.206372]
[1736849406590,0.0066,96924.0,96912.0,0.206372]
[1736849406723,0.01038258,96930.0,96913.0,0.10525855]
[1736849406925,0.12253016,96950.0,96913.0,0.10525855]